Cogmind - Beta 13 @@@ ROGUE MODE // 2024.05.01 @ 11:00:33 // Winter2019/RPGLIKE Player: abcdefg Result: Self-destructed Performance ------------- Evolutions (0) 0 Regions Visited (4) 800 Robots Destroyed (27) 135 Value Destroyed (657) 657 Prototype IDs (29) 580 Alien Tech Used (0) 0 Bonus (328) 328 TOTAL SCORE: 2500 Bonus ------- Follower Combat Kills 28 Aligned with FarCom 300 Cogmind --------- Core Integrity 600/600 Matter 300/300 Energy 350/350 System Corruption 0% Temperature Cool (0) Movement Flying (31) Location -9/Mines Parts ------- > --- POWER (1) -------- Ion Engine > --- PROPULSION (4) --- Flight Unit Flight Unit Flight Unit Flight Unit > --- UTILITY (2) ------ Improved Heat Sink Small Battery > --- WEAPON (3) ------- Medium Laser AWS/Thermal > --- INVENTORY (2) ---- Protomatter-17 Peak State ------------ > --- POWER ------------ Ion Engine > --- PROPULSION ------- Flight Unit Flight Unit Flight Unit Flight Unit > --- UTILITY ---------- Improved Heat Sink Small Battery > --- WEAPON ----------- Medium Laser AWS/Thermal > --- INVENTORY -------- (None) [Rating: 26] Favorites ----------- Power Ion Engine Engine Ion Engine Propulsion Flight Unit Leg Aluminum Leg Flight Unit Flight Unit Utility Improved Heat Sink Device Improved Heat Sink Storage Small Battery Protection Propulsion Shielding Weapon Medium Laser Energy Gun Medium Laser Ballistic Gun Assault Rifle Build | -11 -10 -10 -10 -9 ------- Run | Yrd Mat Min Exi Min Slots Evolved 6 | 3 2 1 . . Power . | . . . . . Propulsion 3 | 1 2 . . . Utility 1 | . . 1 . . Weapon 2 | 2 . . . . Parts Attached 24 | 6 14 2 2 . Power 3 | 1 2 . . . Engine 3 | 1 2 . . . Core . | . . . . . Reactor . | . . . . . Propulsion 7 | 2 5 . . . Treads . | . . . . . Leg 2 | 2 . . . . Wheel . | . . . . . Hover . | . . . . . Flight 5 | . 5 . . . Utility 5 | . 2 2 1 . Device 2 | . 1 1 . . Storage 2 | . . 1 1 . Processor . | . . . . . Hackware . | . . . . . Protection 1 | . 1 . . . Artifact . | . . . . . Weapon 9 | 3 5 . 1 . Energy Gun 7 | 2 4 . 1 . Energy Cannon . | . . . . . Ballistic Gun 2 | 1 1 . . . Ballistic Cannon . | . . . . . Launcher . | . . . . . Special Weapon . | . . . . . Impact Weapon . | . . . . . Slashing Weapon . | . . . . . Piercing Weapon . | . . . . . Special Melee Weapon . | . . . . . Unidentified Prototypes . | . . . . . Parts Lost . | . . . . . Power . | . . . . . Propulsion . | . . . . . Utility . | . . . . . Weapon . | . . . . . Highest Loss Streak . | . . . . . To Critical Strikes . | . . . . . Average Slot Usage (%) 93 | . 91 100 95 90 Engine 11 | . 12 10 10 10 Leg 2 | . 4 . . . Flight 34 | . 29 40 40 40 Device 6 | . 3 10 10 10 Storage 3 | . . 8 10 10 Energy Gun 25 | . 28 20 20 20 Ballistic Gun 8 | . 9 10 5 . Naked Turns . | . . . . . Heaviest Build 17 | 7 13 13 17 17 Greatest Support 21 | 20 20 21 21 21 Greatest Overweight (x) 1 | 1 . . . . Average Overweight (x) . | . . . . . Largest Inventory Capacity 2 | 2 2 2 2 2 Average Capacity 2 | 2 2 2 2 2 Most Carried 2 | 2 2 2 2 2 Average Carried 1 | . 1 1 1 1 Final Capacity 2 | 2 2 2 2 2 Final Carried 2 | . 2 1 2 1 Class Distribution -------------------- 61% | Scavenger-Sprinter 38% | Gunner Dominant Class ---------------- Gunner | -10/Materials Scavenger-Sprinter | -10/Mines Scavenger-Sprinter | -10/Exiles Scavenger-Sprinter | -9/Mines Resources | -11 -10 -10 -10 -9 ----------- Run | Yrd Mat Min Exi Min Matter Collected 500 | 260 191 19 . 30 Remotely . | . . . . . Salvage Created 745 | . 525 139 . 81 Parts 44 | . 35 5 . 4 Haulers Intercepted . | . . . . . Recyclers Shooed 1 | . 1 . . . Parts Field Recycled . | . . . . . Retrieved Matter . | . . . . . Parts Self-Destructed . | . . . . . Prevented . | . . . . . Kills | -11 -10 -10 -10 -9 ------- Run | Yrd Mat Min Exi Min Combat Hostiles Destroyed 23 | . 19 2 . 2 Guns 19 | . 15 2 . 2 AOE 4 | . 4 . . . Classes Destroyed 6 | . 5 . . 1 Worker 1 | . 1 . . . Mechanic 1 | . 1 . . . Watcher 2 | . 2 . . . Swarmer 9 | . 9 . . . Grunt 12 | . 10 2 . . Sentry 2 | . . . . 2 Best Kill Streak 5 | . 5 5 . 2 Combat Bots Only 5 | . 5 4 . 2 Max Kills in Single Turn 2 | . 2 1 . 1 Gunslinging 1 | . 1 . . . Exploded 2 | . 2 . . . Melee . | . . . . . Uniques/NPCs Destroyed . | . . . . . Combat | -11 -10 -10 -10 -9 -------- Run | Yrd Mat Min Exi Min Hostile Shots Fired 73 | . 57 4 . 12 Missed 25 | . 17 2 . 6 Damage Taken 539 | . 416 31 . 92 Core 438 | . 335 24 . 79 Absorbed by Shields . | . . . . . Redirected to Core 317 | . 245 24 . 48 Core Remaining (%) 100 | 100 . . . . Volleys Fired 46 | . 38 3 . 5 Largest 3 | . 3 3 . 1 Hottest 130 | . 130 110 . 50 Shots Fired 139 | . 113 9 . 17 Gun 139 | . 113 9 . 17 Cannon . | . . . . . Launcher . | . . . . . Special . | . . . . . Kinetic 32 | . 29 3 . . Thermal 84 | . 64 3 . 17 Explosive . | . . . . . Electromagnetic 23 | . 20 3 . . Robot Hit Streak 18 | . 11 15 . 18 Robot Miss Streak 3 | . 3 1 . 1 Penetration Max . | . . . . . Secondary Targets 3 | . 2 1 . . Max Gunslinging Chain 1 | . 1 1 . . Autonomous 12 | . . . . 12 Shots Hit Robots 87 | . 63 8 . 16 Core Hits 39 | . 33 4 . 2 Critical Kills . | . . . . . Critical Parts Destroyed . | . . . . . Critical Strikes 3 | . 3 . . . Burn 2 | . 2 . . . Corrupt 1 | . 1 . . . Melee Attacks . | . . . . . Impact . | . . . . . Slashing . | . . . . . Piercing . | . . . . . Sneak Attacks . | . . . . . Combat Hostiles . | . . . . . Follow-up Attacks . | . . . . . Damage Inflicted 1431 | . 968 109 . 354 Guns 1246 | . 783 109 . 354 Cannons . | . . . . . Explosions 185 | . 185 . . . Melee . | . . . . . Ramming . | . . . . . Kinetic 196 | . 154 42 . . Thermal 985 | . 606 25 . 354 Explosive . | . . . . . Electromagnetic 250 | . 208 42 . . Impact . | . . . . . Slashing . | . . . . . Piercing . | . . . . . Highest Corruption . | . . . . . Average Corruption . | . . . . . Corruption Purged . | . . . . . Corruption Blocked . | . . . . . Overload Shots . | . . . . . Overflow Damage . | . . . . . Projectiles . | . . . . . Explosions . | . . . . . Melee . | . . . . . Knockbacks . | . . . . . Impact . | . . . . . Kinetic . | . . . . . Secondary . | . . . . . Self-Inflicted Damage 26 | . 26 . . . Shots 1 | . 1 . . . Rammed . | . . . . . Targets Rammed . | . . . . . Kicked . | . . . . . Crushed . | . . . . . Highest Temperature 472 | . 472 25 . 4 Average Temperature 127 | . 131 18 . 4 Received Heat Transfer 183 | . 120 36 . 27 Effects 6 | . 6 . . . Shutdowns 2 | . 2 . . . Interference 4 | . 4 . . . Siege Activations . | . . . . . Robots Corrupted . | . . . . . Combat Hostiles . | . . . . . Parts Fried . | . . . . . Impact Corruptions . | . . . . . Robots Melted . | . . . . . Combat Hostiles . | . . . . . Parts Melted 4 | . 3 . . 1 Heat Transferred 2043 | . 1414 74 . 555 Parts Sabotaged . | . . . . . Parts Stolen . | . . . . . Parts Stripped . | . . . . . Power Chain Reactions 3 | . 3 . . . Alert | -11 -10 -10 -10 -9 ------- Run | Yrd Mat Min Exi Min Peak Influence 381 | . 381 152 . 211 Initial 102 | . . 102 . . Average 185 | . 221 150 . 100 Maximum Alert Level 1 | . 1 . . 1 Low Security (%) 57 | 100 39 100 . 85 Level 1 42 | . 60 . . 14 Level 2 . | . . . . . Level 3 . | . . . . . Level 4 . | . . . . . Level 5 . | . . . . . High Security . | . . . . . Max Security . | . . . . . Squads Dispatched 4 | . 4 . . . Investigation 4 | . 4 . . . Extermination . | . . . . . Reinforcement . | . . . . . Assault . | . . . . . Garrison . | . . . . . Intercept . | . . . . . Searches Triggered . | . . . . . Construction Impeded . | . . . . . Haulers Reinforced . | . . . . . Active Scanning Responses . | . . . . . Cargo Convoy Interrupts . | . . . . . Stealth | -11 -10 -10 -10 -9 --------- Run | Yrd Mat Min Exi Min Distress Signals . | . . . . . Communications Jammed . | . . . . . Distress Signals . | . . . . . Times Spotted 31 | . 24 1 . 6 Peak Tracking Total 4 | . 4 1 . 4 Tactical Retreats 1 | . . . . 1 Traps | -11 -10 -10 -10 -9 ------- Run | Yrd Mat Min Exi Min Traps Triggered 3 | . 3 . . . Indirectly . | . . . . . Trap Hack Attempts . | . . . . . Triggered . | . . . . . Disarmed . | . . . . . Reprogrammed . | . . . . . Reused . | . . . . . Traps Extracted . | . . . . . Installed . | . . . . . Triggered . | . . . . . Machines | -11 -10 -10 -10 -9 ---------- Run | Yrd Mat Min Exi Min Machines Disabled 2 | . 1 . . 1 Max in Single Turn 1 | . 1 . . 1 Machines Repaired . | . . . . . Machines Dismantled . | . . . . . Machines Sabotaged . | . . . . . Overloaded Fab Kills . | . . . . . Hacking | -11 -10 -10 -10 -9 --------- Run | Yrd Mat Min Exi Min Machines Accessed 11 | . 10 . 1 . Terminals 8 | . 8 . . . Fabricators . | . . . . . Repair Stations . | . . . . . Recycling Units 2 | . 2 . . . Scanalyzers . | . . . . . Garrison Access . | . . . . . Total Hacks 49 | . 48 . 1 . Successful 32 | . 31 . 1 . Failed 17 | . 17 . . . Catastrophic 1 | . 1 . . . Database Lockouts . | . . . . . Manual 4 | . 3 . 1 . Terminals 40 | . 40 . . . Fabricators . | . . . . . Repair Stations . | . . . . . Recycling Units 8 | . 8 . . . Scanalyzers . | . . . . . Garrison Access . | . . . . . Terminal Hacks 26 | . 25 . 1 . Record 4 | . 4 . . . Prototype ID Bank 4 | . 4 . . . Emergency Access Points 2 | . 2 . . . Terminal Index 1 | . 1 . . . Alert Level 2 | . 2 . . . Unreport Threat 1 | . 1 . . . Locate Traps 2 | . 2 . . . Maintenance Status 1 | . 1 . . . Patrol Status 1 | . 1 . . . Reinforcement Status 2 | . 2 . . . Hauler Manifests 1 | . 1 . . . Registered Prototypes 1 | . 1 . . . Zone Layout 3 | . 3 . . . Derelict Proto ID Bank 1 | . . . 1 . Fabricator Hacks . | . . . . . Repair Station Hacks . | . . . . . Recycling Unit Hacks 6 | . 6 . . . Process 2 | . 2 . . . Report Inventory 2 | . 2 . . . Retrieve Matter 2 | . 2 . . . Scanalyzer . | . . . . . Garrison Access Hacks . | . . . . . Unauthorized Hacks . | . . . . . Terminals . | . . . . . Fabricators . | . . . . . Repair Stations . | . . . . . Recycling Units . | . . . . . Scanalyzers . | . . . . . Garrison Access . | . . . . . Data Cores Recovered . | . . . . . Used . | . . . . . Hacking Detections 8 | . 8 . . . Full Trace Events 5 | . 5 . . . Feedback Events . | . . . . . Feedback Blocked . | . . . . . Robot Schematics Acquired . | . . . . . Robots Built . | . . . . . Authchips . | . . . . . Time . | . . . . . Total Robot Build Rating . | . . . . . Part Schematics Acquired . | . . . . . Parts Built . | . . . . . Authchips . | . . . . . Time . | . . . . . Total Part Build Rating . | . . . . . Parts Repaired . | . . . . . Time . | . . . . . Parts Recycled . | . . . . . Recycled Matter 215 | . 215 . . . Retrieved Matter 227 | . 227 . . . Retrieved Components . | . . . . . Parts Scanalyzed . | . . . . . Part Schematics Acquired . | . . . . . Parts Damaged . | . . . . . Bothacking | -11 -10 -10 -10 -9 ------------ Run | Yrd Mat Min Exi Min Used RIF Installer . | . . . . . Robots Hacked . | . . . . . Non-combat . | . . . . . Combat . | . . . . . Robot Hacks Applied . | . . . . . Relay Couplers Released . | . . . . . Fabnet Peak Effective % . | . . . . . Robots Rewired . | . . . . . Allies Hacked . | . . . . . Hacks Repelled . | . . . . . Allies | -11 -10 -10 -10 -9 -------- Run | Yrd Mat Min Exi Min Total Allies 4 | . . 4 . . Largest Group 4 | . . 4 4 3 Highest-Rated Group 71 | . . 71 71 40 Highest-Rated Ally 31 | . . 31 31 16 Total Orders . | . . . . . Ally Attacks 11 | . . . . 11 Total Damage 107 | . . . . 107 Kills 4 | . . . . 4 Allies Corrupted . | . . . . . Allies Melted . | . . . . . Intel | -11 -10 -10 -10 -9 ------- Run | Yrd Mat Min Exi Min Robot Analysis Total . | . . . . . Derelict Logs Recovered . | . . . . . Drone Launches . | . . . . . Drone Recoveries . | . . . . . Exploration | -11 -10 -10 -10 -9 ------------- Run | Yrd Mat Min Exi Min Turns Passed 946 | 45 537 140 150 74 Spaces Moved 1362 | 31 786 196 253 96 Core 6 | 6 . . . . Treads . | . . . . . Legs 73 | 25 48 . . . Wheels . | . . . . . Hover . | . . . . . Flight 1283 | . 738 196 253 96 Fastest Speed 31 | 50 31 31 31 31 Average Speed 37 | 108 38 31 31 31 Slowest Speed 120 | 120 120 31 31 31 Overloaded Moves . | . . . . . Propulsion Burnouts . | . . . . . Robots Hopped 4 | . . 1 . 3 Cave-ins Triggered . | . . . . . Exploration Rate (%) 44 | 3 97 45 61 17 Regions Visited 4 Branch Regions 3 Pre-discovered Areas . | . . . . . Known Exits Taken . | . . . . . Unknown Exits Taken 4 | 1 1 1 1 . Scrap Searched 1 | . . 1 . . Spaces Dug . | . . . . . Terrain Destroyed 7 | . 6 . . 1 Melee . | . . . . . Projectile 1 | . . . . 1 AOE 6 | . 6 . . . Terrain Rammed . | . . . . . Walls Destroyed . | . . . . . Machines Disabled . | . . . . . Actions | -11 -10 -10 -10 -9 --------- Run | Yrd Mat Min Exi Min Total 1705 | 42 937 267 326 133 Wait 187 | . 42 60 60 25 Move 1350 | 30 785 193 252 90 Hop 4 | . . 1 . 3 Pick Up 36 | 6 21 2 6 1 Fast Attach . | . . . . . Attach 14 | 6 6 1 1 . Detach . | . . . . . Swap 10 | . 8 1 1 . Drop 24 | . 14 2 6 2 Fire 46 | . 38 3 . 5 Melee . | . . . . . Ram . | . . . . . Kick . | . . . . . Crush . | . . . . . Escape Stasis . | . . . . . Rewire . | . . . . . Trap . | . . . . . Miscellaneous 34 | . 23 4 . 7 Route ------- -11/Scrapyard -10/Materials (discovered 5 exits: [*Mat x3] / [*Min x2]) -10/Mines (discovered 3 exits: [*Mat x2] / *Exi) -10/Exiles -9/Mines History --------- Turn | Location | Event 1 | -11/Scrapyard | Upgraded with Propulsion slot (x1) 1 | -11/Scrapyard | Upgraded with Weapon slot (x2) 21 | -11/Scrapyard | Discovered new exit (range 16) 46 | -11/Scrapyard | Entered Materials 195 | -10/Materials | Discovered new exit (range 12) 230 | -10/Materials | Discovered new exit (range 12) 320 | -10/Materials | Build established: Gunner 325 | -10/Materials | Discovered new exit (range 13) 355 | -10/Materials | Reached level 2 358 | -10/Materials | Upgraded with Propulsion slot (x2) 427 | -10/Materials | Discovered new exit (range 12) 492 | -10/Materials | Discovered new exit (range 5) 583 | -10/Materials | Entered Mines 585 | -10/Mines | Reached level 3 602 | -10/Mines | Upgraded with Utility slot (x1) 608 | -10/Mines | Received a Mining Laser from a helpful Derelict 609 | -10/Mines | Met a Derelict bent on vengeance 612 | -10/Mines | Discovered new exit (range 4) 621 | -10/Mines | Discovered new exit (range 12) 627 | -10/Mines | Assisted by bots powering up and referring to "LRC-V3" 664 | -10/Mines | Build established: Scavenger-Sprinter 665 | -10/Mines | Deemed a non-threat by the Exiles lab entrance 666 | -10/Mines | Discovered new exit (range 5) 723 | -10/Mines | Entered Exiles 723 | -10/Exiles | Accompanied by 4 allies 731 | -10/Exiles | Met 8R-AWN 736 | -10/Exiles | Met EX-HEX 746 | -10/Exiles | Met EX-BIN 750 | -10/Exiles | Aligned with FarCom system 750 | -10/Exiles | Given EX-Vault access code 757 | -10/Exiles | Opened EX-Vault 760 | -10/Exiles | Found Field Lobotomy Kit 764 | -10/Exiles | Found AWS/Thermal 771 | -10/Exiles | Warned to stay clear of 0b10 Research branches 780 | -10/Exiles | Met EX-DEC 804 | -10/Exiles | Discovered new exit (range 14) 873 | -10/Exiles | Left Exiles lab with AWS/Thermal 873 | -10/Exiles | Entered Mines 873 | -9/Mines | Accompanied by 3 allies 911 | -9/Mines | Reached level 4 947 | -9/Mines | Self-destructed Last Messages --------------- 00873_ Receiving FarCom transmissions... 00911_ Reached level 4. 00915_ Used Protomatter to restore core integrity (+4) 00916_ Used Protomatter to restore part integrity (+11, depleted) 00917_ Acquired 18 matter. 00918_ Acquired 12 matter. 00923_ Upgraded: Ranged Accuracy (+10) 00928_ Y-45 Defender destroyed. 00935_ Machine disabled. 00935_ Melted Lgt. Treads. 00936_ Y-45 Defender destroyed. 00940_ Used Protomatter to restore core integrity (+79) 00941_ Used Protomatter to restore part integrity (+16) 00945_ Dropped EM Pulse Gun. 00946_ Dropped Assault Rifle. 00946_ Acquired Protomatter-17. Map ----- +----------------------------------------------------+ | ????????????????????????????????# #???????? | | ????????????????????????????????# #???????? | | ????????????????????????????????# ##???????? | | ????????? ??????????????????????# #????????? | | ??????? ?????????????????????# #????????? | | ????? ????????????????????## #????????? | | ????? ???????????????????# #????????? | | ?????# ???????????????????# ##???????? | | ??????# ????????????####### ##??????? | | ???????# ????????????# ###????? | | ???????# ???????????# ###### #????? | | ???????# ???????????# #????## #???? | | ????????? ??????##### #?????## #???? | | ??????????# ??????#== #??????? ##???? | | ???????????# ?????# #####???????# ##????? | | ????????#### ######%#????????????###?????? | | ????????# =[=% #????????????????????? | | ????????# ## =####????????????????????? | | ????????????### ### #???????????????????????? | | ??????????????# ??# #???????????????????????? | | ??????????????# ??# #???????????????????????? | | ?????????????? ??# #???######??????????????? | | ??????????????#???# #??##"]!"##?????????????? | | ??????????????????# #??#g"!!""#?????????????? | | ??????????????????# #??# [g !!#?????????????? | | ??????????????????# ##??#@g=%#?????????##???? | | ?????????????????## #####//*####### #???? | | ????????????????## #??????? | | ????????????????# #??????? | | ????????????????# #######??????? | | ????????????????## ##????????????? | | ?????????????????## ##?????????????? | | ??????????????????#### #??????????????? | | ?????????????????????## ##??????????????? | | ??????????????????????## ##???????????????? | | ???????????????????????#####????????????????? | | ????????????????????????????????????????????? | | ????????????????????????????????????????????? | | ????????????????????????????????????????????? | | ????????????????????????????????????????????? | | ????????????????????????????????????????????? | | ???????????????????gg???????????????????????? | | ????????????????????????????????????????????? | | ????????????????????????????????????????????? | | ????????????????????????????????????????????? | | ????????????????????????????????????????????? | | ????????????????????????????????????????????? | | ????????????????????????????????????????????? | | ????????????????????????????????????????????? | | ????????????????????????????????????????????? | +----------------------------------------------------+ Best States ------------- Heat Dissipation 47 Energy Generation 10 Energy Capacity 350 Matter Stores 300 Matter Capacity 300 Sight Range 16 Terrain Scan Density 10 Propulsion Shielding 33 Evasion (%) 63 Item Schematics ----------------- None Robot Schematics ------------------ None Fabricated ------------ Nothing Alien Tech Used ----------------- None Achievements -------------- None Challenges ------------ None RPGLIKE | -11 -10 -10 -10 -9 --------- Run | Yrd Mat Min Exi Min Levels Raised 3 | . 1 1 . 1 XP Earned 7802 | 3000 2440 750 350 1262 XP Spent 7250 | 2550 1900 1500 . 1300 Upgrades 13 | 5 2 4 . 2 Propulsion Slot 3 | 1 2 . . . Utility Slot 1 | . . 1 . . Weapon Slot 2 | 2 . . . . Mass Support 1 | . . 1 . . Inventory Capacity 2 | 2 . . . . Ranged Accuracy 4 | . . 2 . 2 Protomatter Created 276 | . 226 . . 50 Integrity Restored 559 | . 371 78 . 110 Core 438 | . 277 78 . 83 Parts 121 | . 94 . . 27 Protomatter Decayed 10 | . 10 . . . Game ------ Seed GlidesysHellfirePod Manual? 0 Play Time 00:20:38 Cumulative 16.8 hours Start 2024.05.01 @ 10:40:05 End 2024.05.01 @ 11:00:33 Sessions 1 Manual Loads 0 Difficulty Rogue Special Mode Winter2019/RPGLIKE Game No. 24 Rogue 24 Adventurer 0 Explorer 0 Win Type - Total 0 Types 0/0/0/0/0/0/0/0/0 Lore% 22 Gallery% 23 Achievement% 18 Wizard Run 0 Options --------- Layout 1 ASCII 0 Keyboard 0 Movement Mouse Keybinds 0 Fullscreen 1 Font 24/Smallcaps Map View 50x35 Zoom Use 0% Tactical HUD 1 Map Filters NONE Filters NONE Steam 1 RUN: 220928fa-4c76-462f-ab69-7fc76891c11c